Workbook

Sheet Družstva
A1: Výsledky družstev
A2: Počet bodů v jednotlivých kolech | B2: Celkové pořadí | C2: Číslo týmu | D2: Družstvo | E2: 1 | F2: 2 | G2: 3 | H2: 4 | I2: 5 | J2: 6 | K2: 7 | L2: 8 | M2: 9 | N2: Celkový počet bodů
B3: 1. | C3: 6. | D3: Turbiny | E3: 6 | N3: =SUM(E3:M3) -> 6
B4: 2. | C4: 5. | D4: Čtyřlístek | E4: 5 | N4: =SUM(E4:M4) -> 5
B5: 3. | C5: 4. | D5: Indiáni | E5: 4 | N5: =SUM(E5:M5) -> 4
B6: 4. | C6: 2. | D6: Bolevec | E6: 3 | N6: =SUM(E6:M6) -> 3
B7: 5. | C7: 1. | D7: Saint Tropez | E7: 2 | N7: =SUM(E7:M7) -> 2
B8: 6. | C8: 3. | D8: Bubeníci | E8: 1 | N8: =SUM(E8:M8) -> 1
N9: =SUM(E9:M9) -> 0
A11: Výsledky v jednotlivých kolech | B11: Pořadí dle kuželek | C11: Číslo týmu | D11: Družstvo | E11: 1 | F11: 2 | G11: 3 | H11: 4 | I11: 5 | J11: 6 | K11: 7 | L11: 8 | M11: 9 | N11: Součet kuželek
B12: 1. | C12: 6. | D12: Turbiny | E12: 884 | N12: =SUM(E12:M12) -> 884
B13: 2. | C13: 5. | D13: Čtyřlístek | E13: 883 | N13: =SUM(E13:M13) -> 883
B14: 3. | C14: 4. | D14: Indiáni | E14: 872 | N14: =SUM(E14:M14) -> 872
B15: 4. | C15: 2. | D15: Bolevec | E15: 857 | N15: =SUM(E15:M15) -> 857
B16: 5. | C16: 1. | D16: Saint Tropez | E16: 835 | N16: =SUM(E16:M16) -> 835
B17: 6. | C17: 3. | D17: Bubeníci | E17: 771 | N17: =SUM(E17:M17) -> 771
N18: =SUM(E18:M18) -> 0
A19: Příští kolo: 8.října - na Škodovce, družstva č.1 a 2 od 18:00.
A20: Rekord plzeňské ligy neregistrovaných v kuželkách - v družstvech: 8.12.2008 - Turbíny A 1021 bodů.
A21: Rekord plzeňské ligy neregistrovaných v kuželkách - v jednotlivcích: 20.1.2016 - Ivan Vladař 313 bodů.

Sheet Jednotlivci
A1: Výsledky jednotlivců
A2: Pořadí | B2: Jméno | C2: Družstvo | D2: 1 | E2: 2 | F2: 3 | G2: 4 | H2: 5 | I2: 6 | J2: 7 | K2: 8 | L2: 9 | M2: Prům. | N2: Prům. 5 nejlepších | O2: Počet odehraných kol
A4: 1 | B4: Brožík V | C4: Bubeníci | D4: 242 | M4: =AVERAGE(D4:L4) -> 242 | N4: =AVERAGE(LARGE(D4:L4,1),LARGE(D4:L4,2),LARGE(D4:L4,3),LARGE(D4:L4,4),LARGE(D4:L4,5)) ->  | O4: =IF(D4>0,1,0)+IF(E4>0,1,0)+IF(F4>0,1,0)+IF(G4>0,1,0)+IF(H4>0,1,0)+IF(I4>0,1,0)+IF(J4>0,1,0)+IF(K4>0,1,0)+IF(L4>0,1,0) -> 1
A5: 2 | B5: Karais | C5: Turbiny | D5: 242 | M5: =AVERAGE(D5:L5) -> 242 | O5: 1
A6: 3 | B6: Hebrová | C6: Čtyřlístek | D6: 240 | M6: =AVERAGE(D6:L6) -> 240 | O6: 1
A7: 4 | B7: Hittman | C7: Turbiny | D7: 237 | M7: =AVERAGE(D7:L7) -> 237 | O7: 1
A8: 5 | B8: Hanuš P. | C8: Bolevec | D8: 236 | M8: =AVERAGE(D8:L8) -> 236 | O8: 1
A9: 6 | B9: Züglerová | C9: Čtyřlístek | D9: 236 | M9: =AVERAGE(D9:L9) -> 236 | O9: 1
A10: 7 | B10: Konvář | C10: Indiáni | D10: 233 | M10: =AVERAGE(D10:L10) -> 233 | O10: 1
A11: 8 | B11: Jiřík | C11: Čtyřlístek | D11: 227 | M11: =AVERAGE(D11:L11) -> 227 | O11: 1
A12: 9 | B12: Sýkora | C12: Bolevec | D12: 220 | M12: =AVERAGE(D12:L12) -> 220 | O12: 1
A13: 10 | B13: Milka | C13: Saint Tropez | D13: 219 | M13: =AVERAGE(D13:L13) -> 219 | O13: 1
A14: 11 | B14: Vídršperk | C14: Indiáni | D14: 217 | M14: =AVERAGE(D14:L14) -> 217 | O14: 1
A15: 12 | B15: Hefrt | C15: Turbiny | D15: 217 | M15: =AVERAGE(D15:L15) -> 217 | O15: 1
A16: 13 | B16: Fink | C16: Indiáni | D16: 215 | M16: =AVERAGE(D16:L16) -> 215 | O16: 1
A17: 14 | B17: Živný | C17: Saint Tropez | D17: 215 | M17: =AVERAGE(D17:L17) -> 215 | O17: 1
A18: 15 | B18: Hanuš J. | C18: Bolevec | D18: 209 | M18: =AVERAGE(D18:L18) -> 209 | O18: 1
A19: 16 | B19: Zikmund | C19: Indiáni | D19: 207 | M19: =AVERAGE(D19:L19) -> 207 | O19: 1
A20: 17 | B20: Hüfeislová | C20: Saint Tropez | D20: 204 | M20: =AVERAGE(D20:L20) -> 204 | O20: 1
A21: 18 | B21: Duzbabová | C21: Saint Tropez | D21: 197 | M21: =AVERAGE(D21:L21) -> 197 | O21: 1
A22: 19 | B22: Hanuš L. | C22: Bolevec | D22: 192 | M22: =AVERAGE(D22:L22) -> 192 | O22: 1
A23: 20 | B23: Havlík | C23: Turbiny | D23: 188 | M23: =AVERAGE(D23:L23) -> 188 | O23: 1
A24: 21 | B24: Brožík M | C24: Bubeníci | D24: 186 | M24: =AVERAGE(D24:L24) -> 186 | O24: 1
A25: 22 | B25: Tremlová | C25: Čtyřlístek | D25: 180 | M25: =AVERAGE(D25:L25) -> 180 | O25: 1
A26: 23 | B26: Hanačík | C26: Bubeníci | D26: 179 | M26: =AVERAGE(D26:L26) -> 179 | O26: 1
A27: 24 | B27: Kodl | C27: Bubeníci | D27: 164 | M27: =AVERAGE(D27:L27) -> 164 | O27: 1
A28: 25 | B28: Klášterka | C28: Bolevec | D28: 0 | M28: =AVERAGE(D28:L28) -> 0 | O28: 0
A29: 26 | B29: Mastný | C29: Bolevec | D29: 0 | M29: =AVERAGE(D29:L29) -> 0 | O29: 0
A30: 27 | B30: Krejčí | C30: Bubeníci | D30: 0 | M30: =AVERAGE(D30:L30) -> 0 | O30: 0
A31: 28 | B31: Čekan | C31: Bubeníci | D31: 0 | M31: =AVERAGE(D31:L31) -> 0 | O31: 0
A32: 29 | B32: Vítová | C32: Čtyřlístek | D32: 0 | M32: =AVERAGE(D32:L32) -> 0 | O32: 0
A33: 30 | B33: Schwarz | C33: Indiáni | D33: 0 | M33: =AVERAGE(D33:L33) -> 0 | O33: 0
A34: 31 | B34: Hošťálek | C34: Saint Tropez | D34: 0 | M34: =AVERAGE(D34:L34) -> 0 | O34: 0
A35: 32 | B35: Bendl | C35: Saint Tropez | D35: 0 | M35: =AVERAGE(D35:L35) -> 0 | O35: 0
A36: 33 | B36: Šušienková | C36: Saint Tropez | D36: 0 | M36: =AVERAGE(D36:L36) -> 0 | O36: 0
A37: 34 | B37: Duzbaba | C37: Saint Tropez | D37: 0 | M37: =AVERAGE(D37:L37) -> 0 | O37: 0
A38: 35 | B38: Nosek | C38: Turbiny | D38: 0 | M38: =AVERAGE(D38:L38) -> 0 | O38: 0
A39: 36 | M39: =AVERAGE(D39:L39) ->  | N39: =AVERAGE(LARGE(D39:L39,1),LARGE(D39:L39,2),LARGE(D39:L39,3),LARGE(D39:L39,4),LARGE(D39:L39,5)) ->  | O39: =IF(D39>0,1,0)+IF(E39>0,1,0)+IF(F39>0,1,0)+IF(G39>0,1,0)+IF(H39>0,1,0)+IF(I39>0,1,0)+IF(J39>0,1,0)+IF(K39>0,1,0)+IF(L39>0,1,0) -> 0
A40: 36 | O40: 0
